fUSD/lending_fUSD_20260127
["ID","MTS","AMOUNT","RATE_DAILY","PERIOD"]
[403681978,1769473834016,-152.0,0.00016205,2]
[403681979,1769473834026,-152.0,0.00016205,2]
[403681980,1769473834036,-166.39156659,0.00016205,2]
[403681981,1769473834045,-151.0,0.00016205,2]
[403681982,1769473834055,-151.0,0.00016205,2]
[403681983,1769473834064,-151.0,0.00016205,2]
[403681984,1769473834074,-151.0,0.00016205,2]
[403681985,1769473834084,-151.0,0.00016205,2]
[403681986,1769473834094,-151.0,0.00016205,2]
[403681987,1769473834103,-151.0,0.00016205,2]
[403681988,1769473834113,-151.0,0.00016205,2]
[403681989,1769473834123,-151.0,0.00016205,2]
[403681990,1769473834133,-151.0,0.00016205,2]
[403681991,1769473834143,-151.0,0.00016205,2]
[403681992,1769473834152,-1000.0,0.00016209,2]
[403681993,1769473834161,-150.0,0.000163,2]
[403681994,1769473834171,-9473.95455649,0.000163,2]
[403681995,1769473834184,-2279.85668093,0.000163,2]
[403681996,1769473834196,-149.82043302,0.000163,2]
[403681997,1769473834205,-160.15,0.00016314,2]
[403681998,1769473834215,-1766.7310861,0.00016318,2]
[403681999,1769473834225,-606.28542977,0.00016324,2]
[403682000,1769473834234,-1769.67674592,0.00016324,2]
[403682002,1769473838409,-34.33111058,0.00016324,2]
[403682003,1769473838419,-400.26312707,0.00016324,2]
[403682004,1769473838429,-645.13369735,0.00016324,2]
[403682005,1769473838439,-258.22,0.00016352,2]
[403682006,1769473838449,-500.0,0.00016373,2]
[403682007,1769473838462,-500.0,0.00016373,2]
[403682008,1769473838472,-160.15,0.00016396,2]
[403682009,1769473838482,-380.03185353,0.00016396,2]
[403682010,1769473838494,-119.96814647,0.00016396,2]
[403682011,1769473838504,-500.0,0.00016396,2]
[403682012,1769473838514,-448.70912545,0.00016396,2]
[403682013,1769473838523,-469.98592892,0.00016397,2]
[403682015,1769473838536,-1186.0746868,0.00016397,2]
[403682017,1769473838548,-3999.89458208,0.00016397,2]
[403682070,1769473839251,-696.6099996,0.00016397,2]
[403682071,1769473839274,-108449.23541862,0.00016397,2]
[403682072,1769473839283,-173.64,0.00016406,2]
[403682073,1769473839293,-4539.83567268,0.00016407,2]
[403682074,1769473839303,-8008.80825051,0.00016407,2]
[403682075,1769473839312,-620.91910033,0.00016408,2]
[403682076,1769473839322,-504.38,0.00016408,3]
[403682077,1769473839331,-500.0,0.00016417,2]
[403682078,1769473839341,-309.37413823,0.00016417,2]
[403682079,1769473839350,-462.80529978,0.00016417,2]
[403682080,1769473839360,-500.0,0.00016417,2]
[403682081,1769473839369,-634.26486355,0.00016417,2]
[403682082,1769473839378,-500.0,0.00016417,2]
[403682083,1769473839388,-500.0,0.00016417,2]
[403682084,1769473839397,-500.0,0.00016417,2]
[403682085,1769473839406,-500.0,0.00016417,2]
[403682086,1769473839416,-150.0,0.00016417,2]
[403682087,1769473839425,-212978.53658172,0.00016418,2]
[403682088,1769473839442,-11357.69576679,0.00016418,2]
[403682089,1769473840428,-775663.76765149,0.00016418,2]
[403682090,1769473840438,-500.0,0.00016424,2]
[403682091,1769473840448,-500.0,0.00016424,2]
[403682092,1769473840458,-509.94585704,0.00016424,2]
[403682093,1769473840468,-500.0,0.00016424,2]
[403682094,1769473840477,-211.54379928,0.00016438,2]
[403682095,1769473840487,-1000.0,0.00016438,2]
[403682096,1769473840498,-500.0,0.00016438,2]
[403682097,1769473840734,-267.46074303,0.00016438,2]
[403682098,1769473840744,-165.25,0.0001644,2]
[403682099,1769473840753,-181.08010149,0.00016446,2]
[403682100,1769473840763,-209.40437684,0.00016446,2]
[403682101,1769473840772,-160.15,0.00016477,2]
[403682102,1769473840782,-246.24,0.00016479,2]
[403682103,1769473840792,-1804.00785646,0.00016499,2]
[403682105,1769473840801,-643.04,0.00016515,2]
[403682106,1769473840811,-160.15,0.00016559,2]
[403682108,1769473840820,-645.13369735,0.00016612,2]
[403682110,1769473840829,-160.15,0.0001664,2]
[403682111,1769473840839,-166.67,0.00016641,2]
[403682112,1769473840848,-1804.00785646,0.00016674,2]
[403682113,1769473840858,-1000.0,0.00016712,2]
[403682114,1769473840867,-165.07,0.00016712,2]
[403682115,1769473840877,-160.15,0.00016722,2]
[403682116,1769473840887,-771.01748645,0.00016743,2]
[403682117,1769473840897,-854.2589148,0.00016743,2]
[403682118,1769473840906,-151.0,0.00016743,2]
[403682119,1769473840915,-246.24,0.00016753,2]
[403682120,1769473840925,-160.15,0.00016803,2]
[403682121,1769473840934,-150.0,0.00016814,2]
[403682122,1769473840943,-150.0,0.00016814,2]
[403682123,1769473840952,-150.0,0.00016814,2]
[403682124,1769473840962,-1804.00785646,0.00016849,2]
[403682125,1769473840971,-645.13369735,0.000169,2]
[403682126,1769473840982,-11903.63167041,0.00016919,2]
[403682127,1769473840992,-1000.0,0.00016921,2]
[403682128,1769473841001,-1000.0,0.00016921,2]
[403682129,1769473841011,-150.99,0.00016922,2]
[403682130,1769473841020,-24446.97,0.00016922,2]
[403682131,1769473841030,-9999.99,0.00016922,2]
[403682132,1769473841040,-3585.47,0.00016928,2]
[403682133,1769473841050,-1000.0,0.00016986,2]
[403682134,1769473841059,-260.07851394,0.00016986,2]
[403682135,1769473841068,-187.78006525,0.00016994,2]
[403682136,1769473841078,-217.15233878,0.00016994,2]
[403682137,1769473841087,-250.0,0.00017,2]
[403682138,1769473841097,-311141.3143789,0.00017,2]
[403682139,1769473841106,-2000.0,0.00017,2]
[403682140,1769473841115,-1804.00785646,0.00017024,2]
[403682141,1769473841124,-246.24,0.00017027,2]
[403682142,1769473841133,-250.0,0.00017061,2]
[403682143,1769473841142,-293.05665333,0.00017061,2]
[403682144,1769473841152,-600.0,0.00017061,2]
[403682145,1769473841162,-195.0,0.00017061,2]
[403682146,1769473841171,-250.0,0.00017061,2]
[403682147,1769473841181,-375.32425764,0.00017061,2]
[403682148,1769473841190,-195.0,0.00017061,2]
[403682149,1769473841199,-867.98,0.00017069,2]
[403682150,1769473841209,-168.0,0.00017087,2]
[403682151,1769473841218,-1600.0,0.00017092,2]
[403682152,1769473841227,-643.04,0.00017112,2]
[403682153,1769473841236,-150.00282154,0.00017135,2]
[403682154,1769473841246,-4281.095,0.00017193,2]
[403682155,1769473841255,-371.824,0.00017193,2]
[403682156,1769473841264,-1804.00785646,0.000172,2]
[403682157,1769473841273,-258.22,0.00017213,2]
[403682158,1769473841283,-1000.0,0.0001726,2]
[403682159,1769473841292,-334.5472959,0.00017267,2]
[403682160,1769473841302,-495.47407409,0.00017291,2]
[403682161,1769473841311,-885.86649465,0.00017291,2]
[403682162,1769473841320,-262.5256687,0.00017291,2]
[403682163,1769473841330,-150.0,0.00017291,2]
[403682164,1769473841339,-246.25873184,0.00017301,2]
[403682165,1769473841349,-7333.0,0.00017302,2]
[403682166,1769473841358,-729.0,0.00017312,2]
[403682167,1769473841368,-3199.69,0.00017339,2]
[403682168,1769473841377,-867.98,0.00017343,2]
[403682169,1769473841386,-168.0,0.00017358,2]
[403682170,1769473841396,-1804.00785646,0.00017375,2]
[403682171,1769473841405,-1178.09633746,0.00017392,5]
[403682172,1769473841415,-11980.69816741,0.00017407,2]
[403682173,1769473841425,-159.33586698,0.00017441,2]
[403682174,1769473841434,-751.11223741,0.00017468,2]
[403682175,1769473841444,-194.60121167,0.00017468,2]
[403682176,1769473841453,-1680.0,0.0001747,2]
[403682177,1769473841463,-600.0,0.000175,6]
[403682178,1769473841472,-1000.0,0.00017534,2]
[403682179,1769473841482,-11903.63167041,0.00017538,2]
[403682180,1769473841491,-194.72792766,0.00017542,2]
[403682181,1769473841501,-266.74224609,0.00017542,2]
[403682182,1769473841510,-1804.00785646,0.0001755,2]
[403682183,1769473841520,-900.0,0.00017567,2]
[403682184,1769473841529,-500.0,0.000176,2]
[403682185,1769473841539,-188.89,0.000176,2]
[403682186,1769473841548,-500.0,0.000176,2]
[403682187,1769473841563,-500.0,0.000176,2]
[403682188,1769473841572,-500.0,0.000176,2]
[403682189,1769473841582,-800.0,0.000176,6]
[403682190,1769473841591,-867.98,0.00017617,2]
[403682191,1769473841602,-208.06969914,0.0001764,2]
[403682192,1769473841611,-168.0,0.00017641,2]
[403682193,1769473841620,-150.0,0.00017699,2]
[403682194,1769473841631,-150.0,0.00017699,2]
[403682195,1769473841641,-197.75906052,0.00017699,2]
[403682196,1769473841650,-150.0,0.00017699,2]
[403682197,1769473841660,-150.96094425,0.00017699,2]
[403682198,1769473841669,-150.0,0.00017699,2]
[403682199,1769473841678,-150.0,0.00017699,2]
[403682200,1769473841687,-500.0,0.00017699,2]
[403682201,1769473841696,-150.0,0.00017699,2]
[403682202,1769473841706,-746.0,0.00017699,2]
[403682203,1769473841715,-152.18717547,0.00017699,2]
[403682204,1769473841724,-500.0,0.00017699,2]
[403682205,1769473841733,-150.0,0.00017699,2]
[403682206,1769473841743,-150.0,0.00017699,2]
[403682207,1769473841752,-150.0,0.00017699,2]
[403682208,1769473841761,-500.0,0.00017699,2]
[403682209,1769473841770,-150.0,0.00017699,2]
[403682210,1769473841782,-150.0,0.00017699,2]
[403682211,1769473841792,-150.0,0.00017699,2]
[403682212,1769473841801,-500.0,0.00017699,2]
[403682213,1769473841810,-250.65313061,0.00017699,2]
[403682214,1769473841820,-1000.0,0.000177,6]
[403682215,1769473841829,-643.04,0.00017709,2]
[403682216,1769473841838,-400.26312705,0.00017711,2]
[403682217,1769473841848,-1804.00785646,0.00017725,2]
[403682218,1769473841858,-500.0,0.00017733,2]
[403682219,1769473841867,-500.0,0.00017733,2]
[403682220,1769473841876,-500.0,0.00017733,2]
[403682221,1769473841886,-3585.47,0.00017734,2]
[403682222,1769473841895,-150.0,0.00017754,2]
[403682223,1769473841904,-250.0,0.00017754,2]
[403682224,1769473841913,-150.0,0.00017754,2]
[403682225,1769473841922,-150.0,0.00017754,2]
[403682226,1769473841931,-204.14477787,0.00017754,2]
[403682227,1769473841941,-600.0,0.00017754,2]
[403682228,1769473841950,-746.0,0.00017754,2]
[403682229,1769473841959,-500.0,0.00017754,2]
[403682230,1769473841968,-200.0,0.00017754,2]
[403682231,1769473841977,-150.0,0.00017754,2]
[403682232,1769473841986,-150.0,0.00017754,2]
[403682233,1769473841995,-500.0,0.00017754,2]
[403682234,1769473842005,-150.0,0.00017754,2]
[403682235,1769473842014,-588.0,0.00017754,2]
[403682236,1769473842023,-168.0,0.00017782,2]
[403682237,1769473842032,-200.0,0.000178,6]
[403682238,1769473842041,-168.0,0.00017804,2]
[403682239,1769473842051,-500.0,0.00017807,2]
[403682240,1769473842060,-500.0,0.00017807,3]
[403682241,1769473842069,-500.0,0.00017807,4]
[403682242,1769473842078,-500.0,0.00017807,2]
[403682243,1769473842087,-1000.0,0.00017808,2]
[403682244,1769473842096,-200.0,0.00017808,5]
[403682245,1769473842105,-200.0,0.00017808,5]
[403682246,1769473842114,-200.0,0.00017808,5]
[403682247,1769473842123,-200.0,0.00017808,5]
[403682248,1769473842132,-200.0,0.00017808,5]
[403682249,1769473842141,-200.0,0.00017808,5]
[403682250,1769473842154,-200.0,0.00017808,5]
[403682251,1769473842163,-200.0,0.00017808,5]
[403682252,1769473842172,-200.0,0.00017808,5]
[403682253,1769473842181,-200.0,0.00017808,5]
[403682254,1769473842190,-200.0,0.00017808,5]
[403682255,1769473842199,-200.0,0.00017808,5]
[403682256,1769473842208,-200.0,0.00017808,5]
[403682257,1769473842217,-200.0,0.00017808,5]
[403682258,1769473842226,-200.0,0.00017808,5]
[403682259,1769473842235,-200.0,0.00017808,5]
[403682260,1769473842244,-200.0,0.00017808,5]
[403682261,1769473842253,-200.0,0.00017808,5]
[403682262,1769473842262,-200.0,0.00017808,5]
[403682263,1769473842271,-200.0,0.00017808,5]
[403682264,1769473842280,-200.0,0.00017808,5]
[403682265,1769473842290,-200.0,0.00017808,5]
[403682266,1769473842299,-200.0,0.00017808,5]
[403682267,1769473842308,-200.0,0.00017808,5]
[403682268,1769473842318,-200.0,0.00017808,5]
[403682269,1769473842327,-200.0,0.00017808,5]
[403682270,1769473842336,-200.0,0.00017808,5]
[403682271,1769473842345,-200.0,0.00017808,5]
[403682272,1769473842359,-200.0,0.00017808,5]
[403682273,1769473842368,-200.0,0.00017808,5]
[403682274,1769473842377,-200.0,0.00017808,5]
[403682275,1769473842386,-200.0,0.00017808,5]
[403682276,1769473842395,-200.0,0.00017808,5]
[403682277,1769473842404,-200.0,0.00017808,5]
[403682278,1769473842414,-200.0,0.00017808,5]
[403682279,1769473842423,-200.0,0.00017808,5]
[403682280,1769473842433,-200.0,0.00017808,5]
[403682281,1769473842442,-200.0,0.00017808,5]
[403682282,1769473842451,-298.129632,0.00017808,5]
[403682283,1769473842460,-200.0,0.00017809,2]
[403682284,1769473842470,-200.0,0.00017809,2]
[403682285,1769473842479,-200.0,0.00017809,2]
[403682286,1769473842489,-746.0,0.00017809,2]
[403682287,1769473842498,-346.76380553,0.00017809,2]
[403682288,1769473842507,-274.0,0.00017809,2]
[403682289,1769473842516,-150.0,0.00017809,2]
[403682290,1769473842525,-550.0,0.00017809,2]
[403682291,1769473842534,-150.0,0.00017809,2]
[403682292,1769473842543,-2000.0,0.0001782,2]
[403682293,1769473842553,-2000.0,0.0001782,2]
[403682294,1769473842563,-2000.0,0.0001782,2]
[403682295,1769473842572,-2000.0,0.0001782,2]
[403682296,1769473842581,-2000.0,0.0001782,2]
[403682297,1769473842590,-2000.0,0.0001782,2]
[403682298,1769473842598,-918.64355495,0.00017839,2]
[403682299,1769473842608,-200.0,0.00017855,2]
[403682300,1769473842616,-200.0,0.00017856,2]
[403682301,1769473842625,-746.0,0.00017863,2]
[403682302,1769473842634,-247.42246964,0.00017863,2]
[403682303,1769473842643,-150.0,0.00017863,2]
[403682304,1769473842652,-173.64,0.00017871,2]
[403682305,1769473842661,-867.98,0.00017891,2]
[403682306,1769473842670,-411.79218368,0.00017899,2]
[403682307,1769473842679,-500.0,0.00017899,2]
[403682308,1769473842688,-1804.00785646,0.000179,2]
[403682309,1769473842697,-200.0,0.000179,6]
[403682310,1769473842706,-222.96242774,0.000179,3]
[403682311,1769473842715,-1856.57115467,0.000179,2]
[403682312,1769473842725,-1856.5711545,0.000179,2]
[403682313,1769473842734,-1856.5711545,0.000179,2]
[403682314,1769473842743,-620.45015709,0.000179,2]
[403682315,1769473842751,-1856.5711545,0.000179,2]
[403682316,1769473842760,-1856.5711545,0.000179,2]
[403682317,1769473842771,-206.94334667,0.000179,2]
[403682318,1769473842781,-3294.50521446,0.000179,2]
[403682319,1769473842790,-746.0,0.00017918,2]
[403682320,1769473842799,-150.0,0.00017918,2]
[403682321,1769473842808,-168.0,0.00017935,2]
[403682322,1769473842817,-746.0,0.00017973,2]
[403682323,1769473842830,-250.0,0.00017973,2]
[403682324,1769473842839,-150.0,0.00017973,2]
[403682325,1769473842848,-150.0,0.00017973,2]
[403682326,1769473842857,-620.91910033,0.0001799,2]
[403682327,1769473842867,-620.91910033,0.0001799,2]
[403682328,1769473842876,-1178.09633745,0.00017999,5]
[403682329,1769473842885,-500.0,0.00017999,2]
[403682330,1769473842894,-500.0,0.00017999,2]
[403682331,1769473842903,-348.44,0.00017999,2]
[403682332,1769473842911,-624.55953129,0.00017999,2]
[403682333,1769473842920,-500.0,0.00017999,2]
[403682334,1769473843086,-596.95186764,0.00017999,2]
[403682335,1769473843096,-500.0,0.00017999,2]
[403682336,1769473843105,-500.0,0.00017999,2]
[403682337,1769473843114,-245.7739558,0.00017999,2]
[403682338,1769473843123,-500.0,0.00017999,2]
[403682339,1769473843132,-155.0,0.00017999,2]
[403682340,1769473843141,-500.0,0.00017999,5]
[403682341,1769473843150,-500.0,0.00017999,6]
[403682342,1769473843158,-500.0,0.00017999,7]
[403682343,1769473843167,-500.0,0.00017999,8]
[403682344,1769473843176,-500.0,0.00017999,9]
[403682345,1769473843185,-500.0,0.00017999,10]
[403682346,1769473843194,-500.0,0.00017999,11]
[403682347,1769473843203,-600.07,0.00017999,12]
[403682348,1769473843212,-500.0,0.00017999,2]
[403682349,1769473843221,-247.17303857,0.00017999,2]
[403682350,1769473843231,-500.0,0.00017999,2]
[403682351,1769473843239,-500.0,0.00017999,2]
[403682352,1769473843248,-500.0,0.00017999,2]
[403682353,1769473843257,-500.0,0.00017999,2]
[403682354,1769473843266,-500.0,0.00017999,2]
[403682355,1769473843275,-500.0,0.00017999,2]
[403682356,1769473843283,-500.0,0.00017999,2]
[403682357,1769473843292,-369.4752437,0.00017999,2]
[403682358,1769473843301,-500.0,0.00017999,2]
[403682359,1769473843310,-500.0,0.00017999,2]
[403682361,1769473843319,-500.0,0.00017999,2]
[403682362,1769473843328,-500.0,0.00017999,2]
[403682363,1769473843337,-342.77662314,0.00017999,2]
[403682364,1769473843347,-500.0,0.00017999,2]
[403682365,1769473843356,-500.0,0.00017999,2]
[403682366,1769473843365,-500.0,0.00017999,2]
[403682368,1769473843374,-500.0,0.00017999,2]
[403682369,1769473843383,-500.0,0.00017999,2]
[403682370,1769473843392,-500.0,0.00017999,2]
[403682371,1769473843402,-500.0,0.00017999,2]
[403682372,1769473843411,-500.0,0.00017999,2]
[403682373,1769473843420,-500.0,0.00017999,2]
[403682374,1769473843429,-500.0,0.00017999,2]
[403682375,1769473843438,-274.63997222,0.00017999,2]
[403682376,1769473843447,-500.0,0.00017999,2]
[403682377,1769473843456,-457.1035126,0.00017999,2]
[403682378,1769473843465,-531.4641031,0.00017999,2]
[403682379,1769473843474,-500.0,0.00017999,2]
[403682380,1769473843483,-500.0,0.00017999,2]
[403682381,1769473843492,-500.0,0.00017999,2]
[403682382,1769473843502,-300.0,0.00017999,2]
[403682383,1769473843511,-666.0,0.00017999,2]
[403682384,1769473843520,-300.0,0.00017999,2]
[403682385,1769473843529,-500.0,0.00017999,2]
[403682386,1769473843538,-500.0,0.00017999,2]
[403682387,1769473843547,-500.0,0.00017999,2]
[403682388,1769473843558,-500.0,0.00017999,2]
[403682389,1769473843567,-500.0,0.00017999,2]
[403682390,1769473843576,-609.90965872,0.00017999,2]
[403682391,1769473843585,-150.0,0.00017999,2]
[403682392,1769473843594,-119705.92909354,0.00018,2]
[403682393,1769473843605,-110199.41631262,0.00018,2]
[403682394,1769473843614,-59192.29570612,0.00018,2]
[403682395,1769473843623,-2024232.3831004,0.00018,2]
[403682396,1769473843632,-1200.37170123,0.00018,2]
[403682397,1769473843640,-151.0,0.00018,2]
[403682398,1769473843649,-151.0,0.00018,2]
[403682399,1769473843658,-151.0,0.00018,2]
[403682400,1769473843667,-151.0,0.00018,2]
[403682401,1769473843676,-151.0,0.00018,2]
[403682402,1769473843686,-151.0,0.00018,2]
[403682403,1769473843694,-151.0,0.00018,2]
[403682404,1769473843704,-2238707.5792813,0.00018,2]
[403682405,1769473843732,-504.38,0.00018,2]
[403682406,1769473843743,-860.1123645,0.00018,2]
[403682408,1769473843931,-325.58015431,0.000179,2]
[403682409,1769473843953,-1530.99100019,0.000179,2]
[403682410,1769473843962,-2920.15355772,0.00018,2]
[403682411,1769473843973,-563.65456994,0.00018,2]
[403682412,1769473843983,-887.1555738,0.00018,2]
[403682413,1769473843994,-288.87317197,0.00018,2]
[403682414,1769473844005,-263.95605343,0.00018,2]
[403682422,1769473846380,-446.04265821,0.00017303,2]
[403682423,1769473846403,-1856.5711545,0.000179,2]
[403682424,1769473846418,-21814.07765812,0.00018,2]
[403682425,1769473846480,-597.72123317,0.00018,2]
[403682636,1769474436756,1031.96,0.00019178,30]
[403682655,1769474925529,10000.0,5e-07,2]
[403682722,1769475031368,-300.0,0.00015866,2]
[403682723,1769475031378,-168.22940156,0.00015866,2]
[403682724,1769475031389,-499.50294632,0.00015866,2]
[403682725,1769475031467,-532.26765212,0.00015866,2]
[403682726,1769475031476,-160.1729146,0.00015866,2]
[403682727,1769475031491,-439.8270854,0.00015866,2]
[403682728,1769475031501,-195.0,0.00015866,2]
[403682729,1769475031511,-322.6107,0.00015867,2]
[403682730,1769475031521,-3543.0,0.00015867,2]
[403682731,1769475031531,-3253.57751508,0.00015867,2]
[403682732,1769475031540,-174.61919141,0.00015867,2]
[403682733,1769475031549,-600.0,0.00015868,2]
[403682734,1769475031559,-250.0,0.00015869,2]
[403682735,1769475031569,-578.20924308,0.00015872,2]
[403682736,1769475031578,-151.0,0.00015911,2]
[403682738,1769475031588,-151.0,0.00015914,2]
[403682741,1769475031598,-151.0,0.00015992,2]
[403682742,1769475031607,-9873.30412252,0.00015995,2]
[403682747,1769475031644,-8108.35026846,0.00015995,2]
[403682749,1769475031655,-4812.93284303,0.00015995,2]
[403682773,1769475037701,-8608.54535819,0.00015913,2]
[403682779,1769475037777,-694.84877467,0.00015913,2]
[403682781,1769475037796,-1163.21812673,0.00015913,2]
[403682784,1769475037812,-2836.78187327,0.00015995,2]
[403682788,1769475039515,-316.65557795,0.00015995,2]
[403682789,1769475039628,-974051.97531477,0.00015995,2]
[403682790,1769475039943,-5141.63,0.00016013,2]
[403682791,1769475039967,-302.11,0.00016059,3]
[403682792,1769475039977,-3638.81,0.00016095,2]
[403682793,1769475039988,-1435.38,0.00016145,2]
[403682794,1769475039997,-1434.18,0.0001615,2]
[403682795,1769475040006,-194.60121167,0.00016373,2]
[403682796,1769475040015,-151.0,0.00016404,2]
[403682797,1769475040025,-550.0,0.00016406,2]
[403682798,1769475040035,-250.0,0.00016407,2]
[403682799,1769475040044,-695.39793187,0.00016407,2]
[403682800,1769475040055,-250.0,0.00016407,2]
[403682801,1769475040064,-250.0,0.00016407,2]
[403682802,1769475040073,-250.0,0.00016407,2]
[403682803,1769475040083,-250.0,0.00016407,2]
[403682805,1769475040092,-250.0,0.00016407,2]
[403682807,1769475040100,-250.0,0.00016407,2]
[403682809,1769475040110,-250.0,0.00016407,2]
[403682810,1769475040119,-823.77908852,0.00016407,2]
[403682812,1769475040128,-151.0,0.00016407,2]
[403682814,1769475040138,-151.0,0.00016407,2]
[403682816,1769475040147,-151.0,0.00016407,2]
[403682818,1769475040156,-151.0,0.00016407,2]
[403682820,1769475040166,-151.0,0.00016407,2]
[403682822,1769475040174,-151.0,0.00016407,2]
[403682824,1769475040183,-151.0,0.00016407,2]
[403682826,1769475040192,-151.0,0.00016407,2]
[403682828,1769475040202,-151.0,0.00016407,2]
[403682830,1769475040211,-181.08010149,0.00016415,2]
[403682832,1769475040220,-352.71367864,0.00016417,2]
[403682834,1769475040229,-500.0,0.00016417,2]
[403682836,1769475040238,-500.0,0.00016417,2]
[403682838,1769475040247,-500.0,0.00016417,2]
[403682840,1769475040256,-500.0,0.00016417,2]
[403682842,1769475040265,-500.0,0.00016417,2]
[403682844,1769475040274,-348.44,0.00016417,2]
[403682846,1769475040283,-500.0,0.00016417,2]
[403682848,1769475040292,-500.0,0.00016417,2]
[403682850,1769475040301,-500.0,0.00016417,2]
[403682852,1769475040310,-274.63997222,0.00016417,2]
[403682854,1769475040319,-500.0,0.00016417,2]
[403682856,1769475040329,-457.1035126,0.00016417,2]
[403682858,1769475040338,-500.0,0.00016417,2]
[403682860,1769475040347,-500.0,0.00016417,2]
[403682862,1769475040356,-500.0,0.00016417,2]
[403682864,1769475040365,-500.0,0.00016417,2]
[403682866,1769475040374,-500.0,0.00016417,2]
[403682868,1769475040384,-500.0,0.00016417,3]
[403682869,1769475040393,-500.0,0.00016417,4]
[403682870,1769475040402,-500.0,0.00016417,5]
[403682871,1769475040411,-531.4641031,0.00016417,2]
[403682872,1769475040420,-500.0,0.00016417,2]
[403682873,1769475040430,-500.0,0.00016417,2]
[403682874,1769475040439,-500.0,0.00016417,2]
[403682875,1769475040448,-500.0,0.00016417,2]
[403682876,1769475040457,-596.95186764,0.00016417,2]
[403682877,1769475040467,-500.0,0.00016417,2]
[403682878,1769475040476,-609.90965872,0.00016417,2]
[403682879,1769475040485,-500.0,0.00016417,2]
[403682880,1769475040494,-500.0,0.00016417,2]
[403682881,1769475040503,-245.7739558,0.00016417,2]
[403682882,1769475040513,-798.0,0.00016438,2]
[403682883,1769475040523,-500.0,0.00016498,2]
[403682884,1769475040532,-500.0,0.00016498,2]
[403682885,1769475040542,-500.0,0.00016498,6]
[403682886,1769475040551,-168.0,0.00016544,2]
[403682887,1769475040561,-168.0,0.00016637,2]
[403682888,1769475040571,-9999.99,0.00016922,2]
[403682889,1769475040580,-150.99,0.00016922,2]
[403682890,1769475040590,-168.0,0.00016945,2]
[403682891,1769475040599,-854.2589148,0.00016955,2]
[403682892,1769475040609,-1434.18,0.00016958,2]
[403682893,1769475040618,-187.78006525,0.00016963,2]
[403682894,1769475040628,-168.0,0.00016975,2]
[403682895,1769475040637,-500.0,0.00016999,2]
[403682896,1769475040647,-500.0,0.00016999,2]
[403682897,1769475040656,-500.0,0.00016999,7]
[403682898,1769475040665,-1410.0,0.00017007,2]
[403682899,1769475040674,-837.0,0.0001704,2]
[403682900,1769475040684,-1410.0,0.00017134,2]
[403682901,1769475040693,-1410.0,0.00017184,2]
[403682902,1769475040702,-334.5472959,0.00017236,2]
[403682903,1769475040712,-152.0,0.0001726,2]
[403682904,1769475040721,-1000.0,0.0001726,2]
[403682905,1769475040730,-1410.0,0.00017272,2]
[403682906,1769475040740,-166.66,0.00017287,2]
[403682907,1769475040749,-193.63,0.000173,2]
[403682908,1769475040758,-1410.0,0.00017406,2]
[403682909,1769475040768,-3424.876,0.00017407,2]
[403682910,1769475040777,-297.459,0.00017407,2]
[403682911,1769475040787,-1680.0,0.00017436,2]
[403682912,1769475040796,-195.0,0.00017453,2]
[403682913,1769475040806,-208.68914964,0.00017453,2]